bitfinex-derivatives/quotes_ETHF0:USTF0_20250912
["timestamp","ask_amount","ask_price","bid_price","bid_amount"]
[1757668528160,0.5195,4526.6,4526.5,3.87265]
[1757668529261,0.7169,4526.6,4526.5,3.64965]
[1757668532565,1.22345943,4526.6,4526.5,3.2078]
[1757668534565,0.7169,4526.6,4526.5,3.2078]
[1757668541269,5.44441608,4526.6,4526.5,3.2078]
[1757668541873,5.22349608,4526.6,4526.5,3.2078]
[1757668544576,5.39881129,4526.6,4526.5,3.2078]
[1757668544778,0.6884,4526.1,4526.0,3.2078]
[1757668544977,1.41799608,4526.1,4526.0,3.64965]
[1757668545277,1.41799608,4526.1,4526.0,3.2078]
[1757668546280,0.9114,4526.1,4526.0,3.2078]
[1757668551783,0.9114,4526.1,4526.0,3.64965]
[1757668552679,0.1167,4526.0,4525.5,3.2078]
[1757668552876,0.2875,4525.9,4525.5,3.2078]
[1757668553078,0.2875,4525.8,4525.5,3.2078]
[1757668553277,0.1167,4526.0,4525.9,0.44185]
[1757668553278,0.6077,4526.0,4525.9,0.44185]
[1757668553986,0.8051,4526.0,4525.9,0.44185]
[1757668555287,0.6077,4526.0,4525.9,0.44185]
[1757668556183,0.4042,4526.0,4525.9,0.44185]
[1757668557180,0.91310593,4526.0,4525.9,0.44185]
[1757668560401,1.31520593,4526.0,4525.9,0.44185]
[1757668561495,1.02770593,4526.0,4525.5,3.2078]
[1757668561691,0.6787,4525.6,4525.5,3.2078]
[1757668562199,0.6787,4525.6,4525.5,3.64965]
[1757668562800,0.4801,4525.6,4525.5,3.64965]
[1757668564098,0.2873,4525.6,4525.5,3.64965]
[1757668565301,0.6787,4525.6,4525.5,3.64965]
[1757668565704,0.4801,4525.6,4525.5,3.64965]
[1757668566399,0.2873,4525.6,4525.5,3.64965]
[1757668567605,0.6787,4525.6,4525.5,3.64965]
[1757668568498,0.4801,4525.6,4525.5,3.64965]
[1757668568696,0.2873,4525.6,4525.5,3.64965]
[1757668569493,0.4801,4525.6,4525.5,3.64965]
[1757668571208,0.4801,4525.6,4525.5,5.23994734]
[1757668571703,0.6787,4525.6,4525.5,3.64965]
[1757668574807,0.6787,4525.6,4525.5,3.2078]
[1757668579612,1.18503396,4525.6,4525.5,3.2078]
[1757668579909,0.1209,4525.5,4525.0,3.2078]
[1757668580212,0.6787,4525.1,4525.0,3.2078]
[1757668580511,1.18503396,4525.1,4525.0,3.2078]
[1757668582216,0.85240916,4525.1,4525.0,3.2078]
[1757668584009,0.7996,4524.5,4524.4,3.2078]
[1757668585311,1.30454141,4524.5,4524.4,3.2078]
[1757668586415,0.7996,4524.5,4524.4,3.2078]
[1757668587415,4.7996,4524.5,4524.4,3.2078]
[1757668590009,4.7996,4524.5,4522.7,1.59029734]
[1757668590010,0.1263,4524.0,4523.7,3.2078]
[1757668590215,0.699,4523.9,4523.8,0.44185]
[1757668590615,0.4103,4523.9,4523.7,3.2078]
[1757668590920,0.4965,4523.8,4523.7,3.2078]
[1757668591312,0.4965,4523.8,4523.7,3.64965]
[1757668595518,0.2887,4523.8,4523.7,3.64965]
[1757668598122,0.2887,4523.8,4523.7,7.64965]
[1757668598324,0.2887,4523.8,4523.7,7.87265]
[1757668599526,0.2887,4523.8,4523.7,3.87265]
[1757668605324,0.5078,4523.8,4523.7,3.87265]
[1757668606425,0.1263,4524.0,4523.7,3.87265]
[1757668606619,0.415,4524.0,4523.9,0.44185]
[1757668606817,0.415,4524.0,4523.9,0.66485]
[1757668612332,0.6228,4524.0,4523.9,0.66485]
[1757668612736,0.415,4524.0,4523.9,0.223]
[1757668613032,0.415,4524.0,4523.9,0.66485]
[1757668613627,0.6228,4524.0,4523.9,0.66485]
[1757668616834,0.6228,4524.0,4523.9,2.25514734]
[1757668617736,0.415,4524.0,4523.9,2.25514734]
[1757668618037,0.1209,4525.5,4523.9,4.62077]
[1757668618339,0.1209,4525.5,4524.9,3.64965]
[1757668618527,0.1209,4525.5,4524.9,3.87265]
[1757668619939,0.4272,4525.0,4524.9,3.87265]
[1757668620545,0.842,4525.0,4524.9,3.4308]
[1757668621238,0.842,4525.0,4524.9,3.2078]
[1757668628249,4.842,4525.0,4524.9,3.2078]
[1757668629648,0.842,4525.0,4524.9,3.2078]
[1757668635157,0.4272,4525.0,4524.9,3.64965]
[1757668635347,0.4272,4525.0,4524.9,3.87265]
[1757668636466,0.3063,4525.4,4524.9,3.87265]
[1757668636666,0.1209,4525.5,4524.9,3.4308]
[1757668636867,0.4272,4525.5,4525.4,3.64965]
[1757668637275,0.4272,4525.5,4525.4,3.2078]
[1757668637677,0.4272,4525.5,4525.4,3.64965]
[1757668642678,0.4272,4525.5,4525.4,3.2078]
[1757668642978,0.4272,4525.5,4525.4,3.64965]
[1757668643178,0.6354,4525.5,4525.4,3.64965]
[1757668643477,0.842,4525.5,4525.4,3.64965]
[1757668643980,0.842,4525.5,4525.4,3.87265]
[1757668644381,0.842,4525.5,4525.4,3.2078]
[1757668644882,4.842,4525.5,4525.4,3.2078]
[1757668646182,5.35446657,4525.5,4525.4,3.2078]
[1757668648282,0.8421,4525.0,4524.9,3.2078]
[1757668648478,1.35456657,4525.0,4524.9,3.2078]
[1757668649284,5.35456657,4525.0,4524.9,3.2078]
[1757668649587,5.57756657,4525.0,4524.9,3.2078]
[1757668651884,5.57756657,4525.0,4524.9,3.4177]
[1757668652383,5.0651,4525.0,4524.9,3.4177]
[1757668652771,5.0651,4525.0,4524.9,3.2078]
[1757668653085,0.717,4524.2,4524.1,3.2078]
[1757668653573,0.717,4524.2,4523.8,0.2936]
[1757668653774,0.717,4524.2,4524.1,0.44185]
[1757668654171,0.717,4524.2,4523.8,0.2936]
[1757668654379,0.717,4524.2,4524.1,0.44185]
[1757668654583,1.22919918,4524.2,4524.1,0.44185]
[1757668654783,1.22919918,4524.2,4524.1,0.2099]
[1757668656776,0.717,4524.2,4524.1,0.2099]
[1757668661581,0.717,4524.2,4523.8,0.2936]
[1757668661788,0.717,4524.2,4524.1,0.44185]
[1757668662389,0.1251,4524.0,4523.9,0.2099]
[1757668662690,0.5404,4524.0,4523.9,0.2099]
[1757668663081,0.8421,4524.0,4523.9,0.65175]
[1757668665289,0.717,4524.0,4523.9,1.14625]
[1757668671687,0.5054,4524.0,4523.9,1.14625]
[1757668672696,0.5054,4524.0,4523.9,0.7044]
[1757668672997,0.5054,4524.0,4523.9,1.14625]
[1757668676596,0.8421,4524.0,4523.9,1.14625]
[1757668678398,0.7043,4523.6,4523.5,3.2078]
[1757668678590,1.22006778,4523.6,4523.5,3.2078]
[1757668679398,0.3967,4523.1,4523.0,0.526]
[1757668679696,0.7043,4523.1,4523.0,0.526]
[1757668679897,0.7043,4523.1,4523.0,0.96785]
[1757668680301,0.7043,4523.1,4523.0,0.209]
[1757668680496,0.7043,4523.1,4522.8,3.2078]
[1757668680692,0.8238,4523.0,4522.9,0.65085]
[1757668681792,0.8238,4523.0,4522.9,0.96785]
[1757668682697,0.8238,4523.0,4522.9,1.16565]
[1757668683501,0.3076,4523.0,4522.9,1.16565]
[1757668684198,0.4997,4523.0,4522.9,1.16565]
[1757668687895,0.8238,4523.0,4522.9,1.16565]
[1757668691301,0.8238,4523.0,4522.9,0.84865]
[1757668691997,0.8238,4523.0,4522.9,0.209]
[1757668692401,0.3076,4522.9,4522.8,3.2078]
[1757668692703,0.7043,4522.9,4522.8,3.2078]
[1757668693802,0.7043,4522.9,4522.8,3.4168]
[1757668694905,0.7043,4522.9,4522.3,3.2078]
[1757668695207,0.3076,4522.3,4521.8,3.5248]
[1757668695512,0.8238,4522.0,4521.9,0.209]
[1757668696304,0.3076,4521.9,4521.8,3.2078]
[1757668696500,0.7043,4521.9,4521.8,3.2078]
[1757668696698,0.7043,4521.9,4521.8,3.9316]
[1757668699509,0.7043,4521.9,4521.8,3.6146]
[1757668699917,0.7043,4521.9,4521.8,3.9316]
[1757668702017,0.3076,4521.9,4521.8,3.9316]
[1757668702217,0.4997,4521.9,4521.8,3.9316]
[1757668706220,0.5306,4522.1,4521.8,3.6146]
[1757668706418,0.5306,4522.1,4522.0,0.4068]
[1757668706618,0.5306,4522.1,4522.0,0.7238]
[1757668706824,0.7227,4522.1,4522.0,0.7238]
[1757668707616,0.1195,4522.5,4522.0,0.7238]
[1757668707824,0.9344,4522.4,4522.3,0.7154]
[1757668709921,0.223,4522.4,4522.3,0.7154]
[1757668710122,0.7166,4522.4,4522.3,0.7154]
[1757668710520,0.9257,4522.4,4522.3,0.7154]
[1757668711128,0.1264,4522.0,4521.8,3.2078]
[1757668711321,0.8291,4522.0,4521.9,0.65205]
[1757668711516,0.8291,4522.0,4521.8,3.64965]
[1757668711716,0.2989,4521.9,4521.8,3.2078]
[1757668712025,0.7027,4521.9,4521.8,3.2078]
[1757668712227,0.7027,4521.9,4521.8,3.418]
[1757668712528,0.7027,4521.9,4520.7,3.2078]
[1757668712529,0.1264,4521.0,4520.7,3.2078]
[1757668712728,0.7027,4520.8,4520.7,3.9244]
[1757668713412,0.7027,4520.8,4520.7,4.36625]
[1757668713923,0.7027,4520.8,4520.7,3.2078]
[1757668714613,0.1264,4520.5,4520.1,3.2078]
[1757668714925,0.7027,4520.2,4520.1,3.6194]
[1757668715317,0.7027,4520.2,4520.1,3.9244]
[1757668718018,0.223,4520.4,4520.3,0.4116]
[1757668718322,0.7166,4520.4,4520.3,0.7166]
[1757668719022,0.5219,4520.4,4520.3,0.7166]
[1757668721031,0.2989,4520.4,4520.3,0.7166]
[1757668721729,0.5219,4520.6,4520.4,0.305]
[1757668721926,0.47789731,4520.8,4520.6,0.305]
[1757668722128,0.2989,4520.8,4520.7,1.15845]
[1757668722433,0.7166,4520.8,4520.7,1.15845]
[1757668722932,0.9257,4520.8,4520.7,1.15845]
[1757668723228,0.9257,4520.8,4520.7,0.44185]
[1757668723724,0.6268,4520.8,4520.1,3.5128]
[1757668723924,0.7027,4520.6,4520.5,0.65205]
[1757668724123,0.7027,4520.6,4520.5,0.2102]
[1757668726225,0.7027,4520.6,4520.5,0.5152]
[1757668726425,0.7027,4520.6,4520.5,0.7166]
[1757668728533,0.2989,4520.6,4520.5,0.7166]
[1757668729236,0.2989,4520.8,4520.7,0.4116]
[1757668729431,0.223,4520.8,4520.7,0.85345]
[1757668729632,0.2989,4521.3,4520.7,0.85345]
[1757668729827,0.7166,4521.2,4521.1,0.4116]
[1757668730032,0.7166,4521.2,4521.1,0.7166]
[1757668733833,0.9257,4521.2,4521.1,0.4116]
[1757668734836,0.9257,4521.2,4521.1,0.7166]
[1757668735329,0.1264,4521.0,4520.7,3.5128]
[1757668735541,0.7027,4520.8,4520.7,3.9244]
[1757668735834,0.9257,4520.8,4520.7,3.9244]
[1757668736036,0.9257,4520.8,4520.7,4.36625]
[1757668736937,0.9257,4520.8,4520.7,4.06125]
[1757668738038,0.9257,4520.8,4520.7,4.36375]
[1757668738235,0.7166,4520.8,4520.7,4.36375]
[1757668740136,1.23179176,4520.8,4520.7,4.36375]
[1757668740339,1.43249176,4520.8,4520.7,4.06125]
[1757668740838,1.43249176,4520.8,4520.7,4.36375]
[1757668741639,1.43249176,4520.8,4520.7,4.06125]
[1757668742233,1.23179176,4520.8,4520.7,4.36375]
[1757668742437,0.73819176,4520.8,4520.7,4.36375]
[1757668742840,0.51519176,4520.8,4520.7,4.36375]
[1757668746146,0.11099176,4520.8,4520.7,8.36375]
[1757668746438,0.223,4521.3,4520.7,8.06125]
[1757668746743,0.5309,4521.3,4521.2,3.2078]
[1757668747038,0.5309,4521.3,4521.2,3.64965]
[1757668749045,0.3079,4521.8,4521.2,7.64965]
[1757668749238,0.3079,4521.8,4521.2,3.2078]
[1757668749544,0.3079,4521.8,4521.7,0.44185]
[1757668750437,0.5183,4521.8,4521.7,0.44185]
[1757668751344,0.719,4521.8,4521.7,0.44185]
[1757668753541,0.3079,4521.8,4521.7,3.64965]
[1757668753845,0.3079,4522.4,4521.7,7.64965]
[1757668754040,0.3079,4522.4,4522.3,0.44185]
[1757668754244,0.3079,4522.4,4522.3,3.64965]
[1757668754447,0.3079,4522.4,4522.3,3.2078]
[1757668755253,0.5183,4522.4,4522.3,3.2078]
[1757668758447,0.719,4522.4,4522.3,3.2078]
[1757668760954,0.5183,4522.4,4522.3,3.2078]
[1757668761951,0.1146,4522.0,4521.8,3.2078]
[1757668762147,0.719,4521.9,4521.8,3.2078]
[1757668764952,1.22984304,4521.9,4521.8,3.2078]
[1757668766953,0.719,4521.9,4521.8,3.2078]
[1757668768661,0.5309,4521.9,4521.8,3.2078]
[1757668770760,0.7413,4521.9,4521.8,3.2078]
[1757668770958,0.5309,4521.9,4521.8,3.2078]
[1757668772776,0.3164,4521.4,4521.3,3.4308]
[1757668772968,0.3164,4521.4,4521.3,3.2078]
[1757668773877,0.5268,4521.4,4521.3,3.2078]
[1757668774089,0.1158,4521.5,4520.0,0.101]
[1757668774090,0.2104,4520.9,4520.8,3.2078]
[1757668774281,0.5268,4520.9,4520.8,3.2078]
[1757668775376,0.7355,4520.9,4520.8,3.2078]
[1757668784978,0.3164,4520.9,4520.8,3.2078]
[1757668788187,0.5268,4520.9,4520.8,3.2078]
[1757668789789,0.3164,4520.9,4520.8,3.2078]
[1757668790481,0.82736402,4520.9,4520.8,3.2078]
[1757668792388,0.51096402,4520.9,4520.8,3.2078]
[1757668792578,0.3388,4521.5,4520.8,3.2078]
[1757668792579,0.1158,4521.0,4520.8,3.2078]
[1757668792775,0.3164,4520.9,4520.8,3.2078]
[1757668795782,0.5268,4520.9,4520.8,3.2078]
[1757668795986,1.24684004,4520.9,4520.8,3.2078]
[1757668796883,0.7355,4520.9,4520.8,3.2078]
[1757668800286,1.24704137,4520.9,4520.8,3.2078]
[1757668801286,5.24704137,4520.9,4520.8,3.2078]
[1757668801483,0.4896,4520.1,4520.0,3.2078]
[1757668801684,0.2931,4520.1,4520.0,3.2078]
[1757668801886,0.2931,4520.1,4520.0,3.64965]
[1757668802489,0.4896,4520.1,4520.0,3.64965]
[1757668802988,1.20426942,4520.1,4520.0,3.64965]
[1757668803288,1.20426942,4520.1,4520.0,3.2078]
[1757668806391,0.6924,4520.1,4520.0,3.2078]
[1757668824608,0.4896,4520.1,4520.0,3.2078]
[1757668825207,1.00127546,4520.1,4520.0,3.2078]
[1757668825604,1.20407546,4520.1,4520.0,3.2078]
[1757668825909,0.4201,4519.5,4519.4,3.2078]
[1757668826109,0.2931,4519.5,4519.4,3.2078]
[1757668826310,0.127,4520.0,4519.4,3.2078]
[1757668826311,0.2931,4519.9,4519.4,3.64965]
[1757668826609,0.2931,4519.9,4519.4,3.2078]
[1757668826912,0.2931,4519.7,4519.4,3.2078]
[1757668827315,0.127,4520.0,4519.6,0.44185]
[1757668827506,0.2931,4519.8,4519.2,0.223]
[1757668827706,0.51191805,4519.7,4519.2,0.223]
[1757668827908,0.2935,4519.6,4519.3,0.22126]
[1757668828107,0.6184,4520.0,4519.9,0.44185]
[1757668828310,1.13030813,4520.0,4519.9,0.44185]
[1757668830615,1.33450813,4520.0,4519.9,0.44185]
[1757668833414,0.8226,4520.0,4519.9,0.44185]
[1757668833720,1.33525949,4520.0,4519.9,0.44185]
[1757668835309,0.51265949,4520.0,4519.9,0.44185]
[1757668835618,0.93135949,4520.0,4519.9,0.44185]
[1757668836521,1.12925949,4520.0,4519.9,0.44185]
[1757668836923,0.6166,4520.0,4519.9,0.44185]
[1757668838622,0.8208,4520.0,4519.9,0.44185]
[1757668840225,1.33344264,4520.0,4519.9,0.44185]
[1757668840424,0.8208,4520.0,4519.9,0.44185]
[1757668840925,1.33343879,4520.0,4519.9,0.44185]
[1757668845331,1.03993879,4520.0,4519.5,3.2078]
[1757668845631,1.20823879,4519.9,4519.5,3.2078]
[1757668845931,0.6956,4519.7,4519.6,0.44185]
[1757668846329,0.2935,4519.6,4519.5,3.2078]
[1757668846635,0.6956,4519.6,4519.5,3.2078]
[1757668847024,0.6956,4519.6,4519.5,3.64965]
[1757668851133,1.20976287,4519.6,4519.5,3.2078]
[1757668852832,0.91626287,4519.6,4519.0,3.2078]
[1757668853036,0.6956,4519.1,4519.0,3.2078]
[1757668853333,1.20976287,4519.1,4519.0,3.2078]
[1757668855244,0.6956,4519.1,4519.0,3.2078]
[1757668856440,0.4914,4518.6,4518.5,3.2078]
[1757668856640,0.2935,4518.6,4518.5,3.2078]
[1757668856839,0.1252,4519.0,4518.5,3.64965]
[1757668857139,0.3231,4519.0,4518.9,0.44185]
[1757668857638,0.2935,4518.9,4518.5,3.2078]
[1757668857835,0.5248,4518.8,4518.5,3.2078]
[1757668858036,0.3159,4518.9,4518.8,0.44185]
[1757668858341,0.5248,4518.9,4518.8,0.44185]
[1757668858633,0.1252,4519.0,4518.5,3.2078]
[1757668858840,0.3159,4518.9,4518.8,0.44185]
[1757668859034,0.5248,4518.9,4518.8,0.44185]
[1757668859236,0.3341,4519.0,4518.5,3.2078]
[1757668859436,0.5248,4518.9,4518.8,0.44185]
[1757668860343,0.1252,4519.0,4518.5,3.2078]
[1757668860642,0.3159,4518.9,4518.8,0.44185]
[1757668860842,0.3159,4518.9,4518.5,3.2078]
[1757668861038,0.1252,4519.0,4518.8,0.44185]
[1757668861242,0.1252,4519.0,4518.5,3.2078]
[1757668861443,0.3159,4518.9,4518.6,0.2213]
[1757668861838,0.3159,4519.7,4518.7,0.222]
[1757668862142,0.1205,4520.0,4519.9,0.44185]
[1757668862341,0.3159,4519.9,4519.6,3.2078]
[1757668862536,0.7267,4519.7,4519.6,3.2078]
[1757668866843,0.3159,4519.4,4519.1,3.2078]
[1757668867144,0.1205,4519.5,4519.1,3.2078]
[1757668867348,0.5248,4519.4,4519.1,3.2078]
[1757668867539,0.3159,4519.3,4519.1,3.2078]
[1757668867842,0.3159,4519.4,4519.1,3.2078]
[1757668868043,0.3294,4519.5,4519.1,3.2078]
[1757668868243,0.6453,4519.5,4519.4,0.44185]
[1757668869642,0.8472,4519.5,4519.4,0.44185]
[1757668870145,0.3159,4519.4,4519.1,3.2078]
[1757668870347,0.7267,4519.2,4519.1,3.2078]
[1757668876951,1.23583983,4519.2,4519.1,3.2078]
[1757668879555,0.8472,4518.5,4518.4,3.2078]
[1757668879754,1.35633983,4518.5,4518.4,3.2078]
[1757668879942,1.35633983,4518.5,4518.4,3.64965]
[1757668880146,1.35633983,4518.5,4518.4,3.2078]
[1757668882652,1.15443983,4518.5,4518.4,3.2078]
[1757668883056,1.15443983,4518.5,4518.4,3.64965]
[1757668884556,0.50913983,4518.5,4518.4,3.64965]
[1757668884855,0.4364,4519.0,4518.4,7.64965]
[1757668885158,0.3159,4518.8,4518.4,3.2078]
[1757668885357,0.3159,4518.9,4518.4,3.2078]
[1757668885560,0.3159,4518.7,4518.4,3.2078]
[1757668886257,0.3159,4518.7,4518.6,0.44185]
[1757668886954,0.3159,4519.4,4518.6,4.0]
[1757668887160,0.1205,4519.5,4519.1,3.2078]
[1757668887459,0.3294,4519.5,4519.1,3.2078]
[1757668887661,0.3159,4519.3,4519.1,3.2078]
[1757668887853,0.3108,4519.4,4519.1,3.2078]
[1757668888459,0.5079,4519.4,4519.3,0.44185]
[1757668889062,0.1205,4519.5,4519.1,3.2078]
[1757668889358,0.3176,4519.5,4519.4,0.44185]
[1757668889754,0.3108,4519.1,4518.7,0.223]
[1757668889959,0.5079,4518.7,4518.6,3.4308]
[1757668890156,0.5079,4518.7,4518.6,3.2078]
[1757668890557,0.3108,4518.7,4518.6,3.2078]
[1757668894964,0.1269,4519.0,4518.6,3.2078]
[1757668895155,0.1269,4519.0,4518.9,0.44185]
[1757668895865,0.4377,4519.0,4518.9,0.44185]
[1757668905279,0.3108,4519.4,4518.9,0.66485]
[1757668905487,0.4313,4519.5,4519.4,0.44185]
[1757668906387,0.3108,4519.9,4519.4,4.44185]
[1757668906575,0.6284,4520.0,4519.9,0.44185]
[1757668909187,0.6284,4520.0,4519.9,3.64965]
[1757668912485,0.8284,4520.0,4519.9,3.2078]
[1757668912780,0.8348,4519.5,4519.4,3.2078]
[1757668917090,1.34251249,4519.5,4519.4,3.2078]
[1757668919179,1.14251249,4519.5,4519.4,3.64965]
[1757668919585,1.34971249,4519.5,4519.4,3.2078]
[1757668922892,1.34971249,4519.5,4519.4,3.64965]
[1757668923191,0.94541249,4519.5,4519.4,3.64965]
[1757668923389,1.15381249,4519.5,4519.4,3.64965]
[1757668923586,1.36101249,4519.5,4519.4,3.64965]
[1757668923993,1.36101249,4519.5,4519.4,3.2078]
[1757668925388,0.94541249,4519.5,4519.4,3.64965]
[1757668926092,1.15381249,4519.5,4519.4,3.64965]
[1757668926994,0.6461,4519.5,4519.4,3.64965]
[1757668927294,0.4377,4519.5,4519.4,3.64965]
[1757668927589,0.3082,4519.8,4519.4,3.64965]
[1757668927795,0.223,4519.9,4519.4,3.64965]
[1757668927796,0.5312,4519.9,4519.8,0.44185]
[1757668928293,0.223,4519.9,4519.4,3.4308]
[1757668928595,0.4287,4520.0,4519.8,0.44185]
[1757668928797,0.4287,4520.0,4519.9,3.64965]
[1757668931092,0.1205,4520.5,4519.9,3.64965]
[1757668931297,0.6371,4520.5,4520.4,3.2078]
[1757668932097,1.14490817,4520.5,4520.4,3.2078]
[1757668932299,0.6371,4520.5,4520.4,3.2078]
[1757668934298,0.1245,4521.5,4520.4,3.2078]
[1757668934299,0.223,4521.1,4520.4,3.64965]
[1757668934495,0.5425,4521.0,4520.9,3.2078]
[1757668934796,0.3353,4521.0,4520.9,3.2078]
[1757668935097,0.6435,4521.0,4520.9,3.2078]
[1757668935694,0.8507,4521.0,4520.9,3.2078]
[1757668939895,0.4351,4521.0,4520.9,3.64965]
[1757668941096,0.6435,4521.0,4520.9,3.64965]
[1757668942408,0.4351,4521.0,4520.9,3.64965]
[1757668942697,0.4351,4521.0,4520.9,3.2078]
[1757668943201,0.4351,4521.0,4520.9,3.64965]
[1757668943500,0.8507,4521.0,4520.9,3.2078]
[1757668943695,0.8483,4520.5,4520.4,3.2078]
[1757668944202,0.8483,4520.5,4520.4,3.64965]
[1757668945502,0.8483,4520.5,4520.4,3.2078]
[1757668950004,0.4327,4520.5,4520.4,3.2078]
[1757668950207,0.6405,4520.5,4520.4,3.2078]
[1757668950600,0.8363,4520.5,4520.4,3.2078]
[1757668952495,5.05752001,4520.5,4520.4,3.2078]
[1757668952700,5.34518556,4520.5,4520.4,3.2078]
[1757668954503,5.34518556,4520.5,4519.9,3.2078]
[1757668954709,0.8287,4520.0,4519.9,3.2078]
[1757668955007,0.8287,4520.0,4519.9,3.9206]
[1757668956006,0.8287,4520.0,4519.9,3.4139]
[1757668956311,1.33796727,4520.0,4519.9,3.9206]
[1757668956605,1.33796727,4520.0,4519.9,3.2078]
[1757668956908,1.33796727,4520.0,4519.9,3.4139]
[1757668957104,1.33796727,4520.0,4519.9,3.7275]
[1757668957305,0.8287,4520.0,4519.9,3.9206]
[1757668957502,1.33810087,4520.0,4519.9,3.9206]
[1757668958513,1.21940087,4520.0,4519.9,3.9206]
[1757668958712,0.5281,4520.5,4520.4,0.3992]
[1757668958911,1.56684208,4520.5,4520.4,0.7128]
[1757668959412,1.56684208,4520.5,4520.4,0.3992]
[1757668960210,1.56684208,4520.5,4520.2,0.3136]
[1757668960410,0.71,4520.3,4520.2,0.2061]
[1757668960610,1.21934208,4520.3,4520.2,0.2061]
[1757668960809,1.21934208,4520.3,4520.2,0.7128]
[1757668966014,0.91294208,4520.3,4519.9,3.5214]
[1757668966214,0.71,4520.1,4520.0,0.64795]
[1757668966416,0.71,4519.6,4519.5,0.2061]
[1757668966816,0.71,4519.6,4519.5,0.96155]
[1757668967115,1.2190693,4519.6,4519.5,0.96155]
[1757668968215,1.2190693,4519.6,4519.5,1.15465]
[1757668968718,0.9850193,4519.6,4519.5,0.8374]
[1757668969018,1.1808193,4519.6,4519.5,0.8374]
[1757668969218,0.9126693,4519.6,4519.5,0.8374]
[1757668970716,1.2180693,4519.6,4519.5,0.8374]
[1757668972812,5.61310364,4519.6,4518.9,3.5214]
[1757668973018,0.4036,4518.5,4518.4,3.2078]
[1757668973218,0.71,4518.5,4518.4,3.2078]
[1757668973418,1.3377693,4518.5,4518.4,3.2078]
[1757668975115,1.3377693,4518.5,4518.4,0.3992]
[1757668975616,0.2078,4518.0,4517.9,3.9206]
[1757668975918,0.5142,4518.0,4517.9,3.9206]
[1757668978425,0.3025,4518.4,4517.9,3.607]
[1757668978628,0.5311,4518.5,4518.4,0.2034]
[1757668979128,0.8336,4518.5,4518.4,0.2034]
[1757668980429,0.8336,4518.5,4518.2,0.3007]
[1757668980627,0.7149,4518.3,4518.2,0.5041]
[1757668981140,0.7149,4518.3,4518.2,0.7101]
[1757668982527,0.3025,4518.7,4518.6,0.7101]
[1757668982723,0.7277,4518.7,4518.6,0.7101]
[1757668983524,0.9379,4518.7,4518.3,0.3007]
[1757668983731,0.7149,4518.4,4518.3,0.5041]
[1757668984330,0.7149,4518.4,4518.3,0.7101]
[1757668987930,0.5047,4518.4,4518.3,0.7101]
[1757668988128,0.223,4518.7,4518.3,0.7101]
[1757668988328,0.3025,4518.6,4518.5,0.5363]
[1757668988529,0.223,4518.7,4518.5,0.837]
[1757668988729,0.7277,4518.7,4518.6,0.7101]
[1757668989630,0.3025,4519.1,4518.6,0.4094]
[1757668989829,0.3025,4519.3,4518.9,0.4094]
[1757668990132,3.41,4519.2,4519.1,0.7101]
[1757668990333,3.8432,4519.2,4519.1,0.7101]
[1757668990530,0.3025,4519.1,4518.5,3.3347]
[1757668990835,0.5047,4518.7,4518.6,0.7101]
[1757668991724,0.3025,4519.1,4518.6,0.4094]
[1757668991927,0.5047,4518.8,4518.7,0.7101]
[1757668993835,0.3025,4519.1,4518.7,0.4094]
[1757668994034,0.5047,4519.4,4519.3,0.4094]
[1757668994237,0.9379,4519.4,4519.3,0.7101]
[1757668994433,0.9379,4519.4,4519.0,0.3007]
[1757668994631,0.3025,4519.3,4518.6,0.3007]
[1757668995133,0.3025,4519.3,4518.7,0.3007]
[1757668995333,0.7149,4519.3,4519.2,0.2034]
[1757668995830,0.4124,4519.3,4518.5,3.3347]
[1757668996029,0.7149,4518.7,4518.6,0.7101]
[1757668998036,0.3025,4518.6,4518.1,0.3007]
[1757668998234,0.7149,4518.6,4518.5,0.2034]
[1757668998434,0.7149,4518.6,4518.5,0.7101]
[1757669000133,0.223,4518.9,4518.5,0.837]
[1757669000433,1.00810718,4518.8,4518.7,0.7101]
[1757669000738,1.21830718,4518.8,4518.7,0.7101]
[1757669006737,1.44130718,4518.8,4518.7,0.7101]
[1757669007435,0.7277,4518.8,4518.7,0.7101]
[1757669008742,0.9379,4518.8,4518.7,0.2034]
[1757669009038,0.9379,4518.8,4518.6,0.2058]
[1757669009039,0.7125,4518.7,4518.6,0.2058]
[1757669009340,0.7125,4518.7,4518.6,0.4956]
[1757669009535,0.7125,4518.7,4518.6,0.7061]
[1757669011156,0.1177,4519.0,4518.6,0.7061]
[1757669011335,1.23367988,4518.9,4518.8,0.7061]
[1757669011640,1.43937988,4518.9,4518.8,0.7061]
[1757669012745,1.43937988,4518.9,4518.8,0.2058]
[1757669013642,1.43937988,4518.9,4518.6,3.2078]
[1757669013643,0.2984,4518.8,4518.6,3.2078]
[1757669013852,0.7125,4518.7,4518.6,3.2078]
[1757669014142,0.7125,4518.7,4518.6,3.7034]
[1757669014443,0.7125,4518.7,4518.6,3.9139]
[1757669015443,0.7125,4518.7,4518.6,0.7061]
[1757669016547,0.7125,4518.7,4518.6,0.4163]
[1757669016752,0.7125,4518.7,4518.6,0.2058]
[1757669016943,1.2165596,4518.7,4518.6,0.2058]
[1757669017140,0.1177,4518.5,4518.3,0.2898]
[1757669017340,1.2165596,4518.4,4518.3,0.7061]
[1757669017643,0.5040596,4518.4,4518.3,0.7061]
[1757669017842,0.5040596,4518.6,4518.3,0.4163]
[1757669018044,0.5040596,4518.5,4518.4,0.7061]
[1757669018244,0.8024596,4518.5,4518.4,0.7061]